[Event "FIDE WY-U16 Olympiad 2022"]
[Site "Nakhchivan"]
[Date "2022.10.04"]
[Round "3.20"]
[White "Baloglu, Dila"]
[Black "Alagoz, Zumra Meryem"]
[Result "1-0"]
[ECO "C26"]
[WhiteElo "1752"]
[BlackElo "1800"]
[Annotator "NA RC COMBH"]
[PlyCount "75"]
[EventDate "2022.10.02"]
[EventType "team-tourn"]
[EventCountry "AZE"]
[SourceTitle "playchess.com"]
[Source "ChessBase"]
[SourceQuality "1"]
[WhiteTeam "Turkey"]
[BlackTeam "Turkey"]
[WhiteTeamCountry "TUR"]
[BlackTeamCountry "TUR"]
[TimeControl "40/5400+30:1800+30"]

1. e4 {[%emt 0:00:03]} e5 {[%emt 0:00:18]} 2. Nc3 {[%emt 0:00:06]} Nf6 {[%emt 0:00:09]} 3. g3 {[%emt 0:00:16]} d5 {[%emt 0:05:58]} 4. exd5 {[%emt 0:00:14]} Nxd5 {[%emt 0:00:09]} 5. Bg2 {[%emt 0:00:27]} Be6 {[%emt 0:03:42]} 6. Nf3 {[%emt 0:15:07]} Nc6 {[%emt 0:11:01]} 7. O-O $11 {[%emt 0:07:20]} Qd7 {[%emt 0:26:30]} 8. Re1 {[%emt 0:09:53]} f6 {[%emt 0:02:01]} 9. d4 {[%emt 0:10:23]} Nxc3 {[%emt 0:02:03]} 10. bxc3 {[%emt 0:00:01]} O-O-O {[%emt 0:01:49]} 11. Qe2 {[%emt 0:03:05]} Bd6 {[%emt 0:08:33]} 12. Rb1 {[%emt 0:09:49]} a6 {[%emt 0:06:24]} 13. dxe5 {[%emt 0:02:58]} fxe5 {[%emt 0:03:52]} 14. Ng5 {[%emt 0:10:10]} Bc5 {[%emt 0:11:16]} 15. Be3 {[%emt 0:10:59]} Bxe3 {[%emt 0:03:21]} 16. Qxe3 {[%emt 0:00:01]} h6 {[%emt 0:01:42]} 17. Ne4 {[%emt 0:00:45]} b6 {[%emt 0:04:11]} 18. Qe2 {[%emt 0:01:24]} Qe7 {[%emt 0:04:49]} 19. Qxa6+ {[%emt 0:02:48]} Kd7 {[%emt 0:00:46]} 20. Qb5 {[%emt 0:00:22]} Kc8 {[%emt 0:01:08]} 21. Qxc6 {[%emt 0:00:32]} Bd5 {[%emt 0:00:29]} 22. Qb5 {[%emt 0:03:06]} Rhf8 {[%emt 0:00:27]} 23. c4 {[%emt 0:02:06]} Bxe4 {[%emt 0:00:41]} 24. Bxe4 {[%emt 0:00:17]} Rd2 {[%emt 0:00:09]} 25. f3 {[%emt 0:03:15]} Qd6 {[%emt 0:00:16]} 26. c3 {[%emt 0:02:19]} g5 {[%emt 0:00:59]} 27. g4 {[%emt 0:00:19]} Rd8 {[%emt 0:00:28]} 28. Bc6 {[%emt 0:02:42]} Rxa2 {[%emt 0:00:25]} 29. Bd5 {[%emt 0:01:46]} e4 {[%emt 0:00:28]} 30. Rb2 {[%emt 0:00:12]} Rxb2 {[%emt 0:00:11]} 31. Qxb2 {[%emt 0:00:03]} exf3 {[%emt 0:00:21]} 32. Ra1 {[%emt 0:01:16]} Qf4 {[%emt 0:01:04]} 33. Bc6 {[%emt 0:01:12]} Qxg4+ {[%emt 0:00:46]} 34. Kh1 {[%emt 0:00:03]} Qg2+ {[%emt 0:00:25]} 35. Qxg2 {[%emt 0:00:01]} fxg2+ {[%emt 0:00:05]} 36. Kxg2 {[%emt 0:00:11]} Rd2+ {[%emt 0:00:13]} 37. Kg3 {[%emt 0:00:50]} Kd8 {[%emt 0:00:08]} 38. Re1 {[%emt 0:00:04]} 1-0

[Event "FIDE WY-U16 Olympiad 2022"]
[Site "Nakhchivan"]
[Date "2022.10.04"]
[Round "3.20"]
[White "Potgieter, Edward"]
[Black "Saravanabaavan, Brijeash"]
[Result "1-0"]
[ECO "B13"]
[WhiteElo "1567"]
[BlackElo "1679"]
[Annotator "NA RC COMBH"]
[PlyCount "97"]
[EventDate "2022.10.02"]
[EventType "team-tourn"]
[EventCountry "AZE"]
[SourceTitle "playchess.com"]
[Source "ChessBase"]
[SourceQuality "1"]
[WhiteTeam "South Africa"]
[WhiteTeamCountry "RSA"]
[TimeControl "40/5400+30:1800+30"]

1. e4 {[%emt 0:00:02]} c6 {[%emt 0:00:12]} 2. d4 {[%emt 0:00:09]} d5 {[%emt 0:00:08]} 3. exd5 {[%emt 0:00:06]} cxd5 {[%emt 0:00:06]} 4. Bd3 {[%emt 0:00:06]} Nc6 {[%emt 0:00:05]} 5. c3 {[%emt 0:00:05]} Nf6 {[%emt 0:00:05]} 6. h3 {[%emt 0:00:06]} g6 {[%emt 0:00:05]} 7. Bf4 {[%emt 0:00:13]} Bf5 {[%emt 0:00:46]} 8. Be2 {[%emt 0:00:25]} Bg7 {[%emt 0:02:13]} 9. Nf3 {[%emt 0:00:12]} O-O {[%emt 0:00:26]} 10. O-O {[%emt 0:00:06]} a6 {[%emt 0:03:41]} 11. Nbd2 {[%emt 0:06:34]} b5 {[%emt 0:09:03]} 12. Nb3 {[%emt 0:14:27]} Ne4 {[%emt 0:08:46]} 13. a3 {[%emt 0:08:16]} Qb6 {[%emt 0:11:57]} 14. Bd3 {[%emt 0:14:25]} Na5 {[%emt 0:30:22]} 15. Nxa5 {[%emt 0:23:47]} Qxa5 {[%emt 0:00:30]} 16. Bxe4 {[%emt 0:03:27]} Bxe4 {[%emt 0:05:14]} 17. Ne5 {[%emt 0:00:40]} Rfc8 {[%emt 0:05:45]} 18. g4 {[%emt 0:07:11]} g5 {[%emt 0:13:21]} 19. Bg3 {[%emt 0:03:03]} Bxe5 {[%emt 0:00:28]} 20. Bxe5 {[%emt 0:01:35]} f6 {[%emt 0:00:29]} 21. Bg3 {[%emt 0:00:09]} h6 {[%emt 0:02:29]} 22. f3 {[%emt 0:00:45]} Bg6 {[%emt 0:00:15]} 23. Re1 {[%emt 0:02:03]} Ra7 {[%emt 0:01:09]} 24. Re6 {[%emt 0:03:35]} Bf7 {[%emt 0:00:32]} 25. Re3 {[%emt 0:00:08]} Qb6 {[%emt 0:00:58]} 26. Qe2 {[%emt 0:01:16]} Kf8 {[%emt 0:02:39]} 27. Re1 {[%emt 0:00:36]} Qd8 {[%emt 0:00:19]} 28. Qh2 {[%emt 0:03:30]} Kg7 {[%emt 0:00:33]} 29. h4 {[%emt 0:01:35]} e6 {[%emt 0:01:16]} 30. Kg2 {[%emt 0:01:10]} a5 {[%emt 0:00:41]} 31. Rh1 {[%emt 0:01:51]} Qh8 {[%emt 0:00:21]} 32. Qg1 {[%emt 0:01:50]} Qg8 {[%emt 0:00:44]} 33. Qh2 {[%emt 0:01:34]} Kf8 {[%emt 0:00:36]} 34. Bd6+ {[%emt 0:00:52]} Ke8 {[%emt 0:00:08]} 35. Bc5 {[%emt 0:00:31]} Ra6 {[%emt 0:00:13]} 36. hxg5 {[%emt 0:00:46]} hxg5 {[%emt 0:00:12]} 37. Qh6 {[%emt 0:00:17]} Qg6 {[%emt 0:01:22]} 38. Qf8+ {[%emt 0:00:45]} Kd7 {[%emt 0:00:05]} 39. Qe7+ {[%emt 0:00:19]} Kc6 {[%emt 0:00:12]} 40. Qd6+ {[%emt 0:00:35]} Kb7 {[%emt 0:00:06]} 41. Qd7+ {[%emt 0:30:07]} Rc7 {[%emt 0:30:44]} 42. Qxb5+ {[%emt 0:00:07]} Rb6 {[%emt 0:01:35]} 43. Qxb6+ {[%emt 0:00:07]} Kc8 {[%emt 0:00:13]} 44. Rh8+ {[%emt 0:00:11]} Bg8 {[%emt 0:00:26]} 45. Qxe6+ {[%emt 0:00:40]} Kb7 {[%emt 0:00:10]} 46. Rxg8 {[%emt 0:00:25]} Qc2+ {[%emt 0:00:16]} 47. Re2 {[%emt 0:00:12]} Qb3 {[%emt 0:00:17]} 48. Qe8 {[%emt 0:00:37]} Ka6 {[%emt 0:00:54]} 49. Re6+ {[%emt 0:00:17]} 1-0

[Event "FIDE WY-U16 Olympiad 2022"]
[Site "Nakhchivan"]
[Date "2022.10.04"]
[Round "3.21"]
[White "Aslanov, Umid"]
[Black "Francs, Marats"]
[Result "1/2-1/2"]
[ECO "B87"]
[WhiteElo "2273"]
[BlackElo "1976"]
[Annotator "TA"]
[PlyCount "119"]
[EventDate "2022.10.02"]
[EventType "team-tourn"]
[EventCountry "AZE"]
[SourceTitle "playchess.com"]
[Source "ChessBase"]
[SourceQuality "1"]
[WhiteTeam "Azerbaijan"]
[BlackTeam "Latvia"]
[WhiteTeamCountry "AZE"]
[BlackTeamCountry "LAT"]
[TimeControl "40/5400+30:1800+30"]

{[%evp 22,119,20,0,0,0,0,-12,87,121,118,0,19,30,0,-30,-9,-60,-5,0,37,29,75,27,78,70,77,80,75,32,58,29,48,20,73,54,72,60,66,0,0,0,81,0,22,0,20,20,39,6,54,64,67,0,0,0,49,0,0,0,0,-7,0,0,0,-66,0,0,0,0,0,0,0,0,0,0,0,0,0,0,0,0,0,0,0,-24,-24,-24,-22,-66,-66,-66,-31,-25,0,-66,0,0,0,-19]} 1. e4 {[%emt 0:00:02]} c5 {[%emt 0:00:07]} 2. Nf3 {[%emt 0:00:12]} d6 {[%emt 0:00:12]} 3. d4 {[%emt 0:00:04]} cxd4 {[%emt 0:00:07]} 4. Nxd4 {[%emt 0:00:04]} Nf6 {[%emt 0:00:13]} 5. Nc3 {[%emt 0:00:06]} a6 {[%emt 0:00:09]} 6. Bc4 {[%emt 0:00:24]} e6 {[%emt 0:00:16]} 7. Bb3 {[%emt 0:00:09]} b5 {[%emt 0:00:41]} 8. O-O {[%emt 0:00:09]} Be7 {[%emt 0:00:45]} 9. Qf3 {[%emt 0:00:52]} Qc7 {[%emt 0:00:21]} 10. Qg3 {[%emt 0:00:40]} O-O {[%emt 0:00:24]} 11. Bh6 {[%emt 0:01:14]} Ne8 {[%emt 0:00:18]} 12. Rad1 {[%emt 0:00:42]} Bf6 {[%emt 0:01:00] B87: Sicilian Scheveningen/Najdorf: 6 Bc4, with early ...b5.} 13. Bg5 {[%emt 0:30:35]} b4 {[%emt 0:19:11]} 14. Nce2 {[%emt 0:02:04] [#]} Bb7 $146 {[%emt 0:02:56]} (14... Nd7 $11 {keeps the balance.}) ({Predecessor:} 14... Bxg5 15. Qxg5 Nf6 16. Qe3 e5 17. Nf3 a5 18. c3 a4 19. Bd5 Nxd5 20. Rxd5 Be6 {½-½ (37) Tomczak,J (2509)-Swiercz,D (2492) Chotowa 2010}) 15. Bxf6 $16 {[%emt 0:01:14]} Nxf6 {[%emt 0:00:16]} 16. f3 {[%emt 0:00:30]} (16. Nf4 $16) 16... Qe7 {[%emt 0:13:14]} 17. Nf4 {[%emt 0:09:31][%cal Rf4e6] Nfxe6! is the strong threat.} Bc8 {[%emt 0:06:23]} 18. Nde2 {[%emt 0:12:15]} Nc6 {[%emt 0:09:42]} 19. Rd2 {[%emt 0:07:11]} (19. Nd3 $11) 19... Bb7 {[%emt 0:02:04]} (19... a5 $15) 20. Rfd1 $40 {[%emt 0:03:29][%mdl 128] White attacks.} Rad8 {[%emt 0:01:38]} 21. Qf2 {[%emt 0:02:14]} Rd7 {[%emt 0:05:42]} (21... Ba8 $11 {should be considered.}) 22. Ba4 {[%emt 0:01:14]} (22. Qb6 $16) 22... Qd8 {[%emt 0:02:39]} (22... Rb8 $11) 23. Nd4 $16 {[%emt 0:04:11] White is more active.} Qc8 {[%emt 0:01:07]} 24. Nd3 {[%emt 0:01:21]} a5 {[%emt 0:01:35]} 25. Nc1 {[%emt 0:10:36]} d5 {[%emt 0:02:49]} 26. e5 {[%emt 0:01:38]} Nxe5 {[%emt 0:00:19][%cal Bc6e5,Be5c4,Bc4d6,Bd6f5,Bf5g3][%mdl 32]} 27. Bxd7 {[%emt 0:00:05]} Qxd7 {[%emt 0:00:22]} (27... Nfxd7 $11 28. Nd3 Nc4) 28. Nd3 {[%emt 0:02:09]} Nc4 {[%emt 0:00:46] [#]} 29. Re2 {[%emt 0:00:35]} Qc7 {[%emt 0:00:37]} 30. Qg3 {[%emt 0:03:12]} Qb6 {[%emt 0:00:33]} 31. Qf2 {[%emt 0:00:04]} Qc7 {[%emt 0:01:51]} 32. b3 {[%emt 0:00:44]} ({Better is} 32. c3 $16) 32... Nd6 {[%emt 0:00:16]} 33. Kh1 {[%emt 0:03:13][%cal Oc2c3]} (33. c3 $5) 33... Ba6 {[%emt 0:01:54]} 34. Ree1 {[%emt 0:01:04]} Nd7 {[%emt 0:04:38]} 35. Qg3 {[%emt 0:01:12][%cal Oe1e6]} Bxd3 {[%emt 0:01:37]} (35... Qb6 $11) 36. cxd3 $14 {[%emt 0:02:09][%cal Oe1e6]} Qb6 {[%emt 0:00:34]} 37. Ne2 {[%emt 0:01:19]} (37. Rc1 $14) 37... Nf5 {[%emt 0:00:56]} 38. Qf4 {[%emt 0:00:22]} Qf2 {[%emt 0:00:24]} (38... Ne3 $1 $11) 39. Ng3 {[%emt 0:00:40]} (39. Rc1 $14) 39... Nxg3+ $1 $11 {[%emt 0:00:32]} 40. Qxg3 {[%emt 0:00:16]} Qxa2 {[%emt 0:00:10] aiming for ...Nc5.} 41. Rc1 {[%emt 0:30:37] Against Nc5} Qxb3 {[%emt 0:30:37]} 42. Qc7 $1 {[%emt 0:00:00][%csl LRa5,LRd7]} Nf6 {[%emt 0:00:00][%cal Bd7f6,Bf6h5,Bh5g3][%mdl 32]} ({Don't do} 42... Qa4 43. Ra1 Qb5 44. Rxa5 $16) 43. d4 {[%emt 0:00:00]} (43. Qxa5 $11 Qxd3 44. Qxb4) 43... h5 {[%emt 0:00:00]} (43... Nh5 $1 $15) 44. Qxa5 {[%emt 0:00:00]} h4 {[%emt 0:00:00][%cal Oh4h3]} 45. h3 {[%emt 0:00:00]} Qb2 {[%emt 0:00:00]} 46. Red1 {[%emt 0:00:00]} Nh5 {[%emt 0:00:00] [#] Hoping for ...Nf4.} 47. Rb1 {[%emt 0:00:00]} Ng3+ {[%emt 0:00:00]} 48. Kh2 {[%emt 0:00:00]} Qc3 {[%emt 0:00:00]} 49. Qxb4 {[%emt 0:00:00]} Qe3 {[%emt 0:00:00]} 50. Qe1 {[%emt 0:00:00]} Qxe1 {[%emt 0:00:00]} 51. Rxe1 {[%emt 0:00:00][%mdl 4096] Endgame KRR-KRN} Nf5 {[%emt 0:00:00]} 52. Red1 {[%emt 0:00:00]} Rc8 {[%emt 0:00:00]} 53. Rbc1 {[%emt 0:00:00]} Rxc1 {[%emt 0:00:00]} 54. Rxc1 {[%emt 0:00:00]} Nxd4 {[%emt 0:00:00] KR-KN} 55. Rc7 {[%emt 0:00:00]} g6 {[%emt 0:00:00]} 56. Kg1 {[%emt 0:00:00]} Kg7 {[%emt 0:00:00]} 57. Kf2 {[%emt 0:00:00]} Nf5 {[%emt 0:00:00]} 58. Ke2 {[%emt 0:00:00]} (58. f4 $1 $11) 58... Kf6 {[%emt 0:00:00]} ({Black should try} 58... g5 $1 $15) 59. f4 $1 {[%emt 0:00:00]} Nh6 {[%emt 0:00:00]} 60. Rc5 {[%emt 0:00:00] Weighted Error Value: White=0.21 (precise) /Black=0.18 (very precise)} 1/2-1/2

[Event "FIDE WY-U16 Olympiad 2022"]
[Site "Nakhchivan"]
[Date "2022.10.04"]
[Round "3.21"]
[White "Chen, Max"]
[Black "Arkadan, Adib"]
[Result "0-1"]
[ECO "B22"]
[WhiteElo "2154"]
[BlackElo "1928"]
[Annotator "TA"]
[PlyCount "114"]
[EventDate "2022.10.02"]
[EventType "team-tourn"]
[EventCountry "AZE"]
[SourceTitle "playchess.com"]
[Source "ChessBase"]
[SourceQuality "1"]
[WhiteTeam "Canada"]
[BlackTeam "Lebanon"]
[WhiteTeamCountry "CAN"]
[BlackTeamCountry "LBN"]
[TimeControl "40/5400+30:1800+30"]

{[%evp 23,114,8,16,22,25,18,20,19,34,11,17,22,27,22,31,22,26,28,25,0,0,0,0,0,0,0,7,-46,40,44,60,40,116,112,226,-104,-102,-90,-100,-138,-20,-20,-18,-13,-18,-32,0,0,0,-65,-80,-164,-164,-164,-164,-164,-143,-224,-213,-225,-219,-218,-201,-198,-193,-189,-187,-362,-362,-343,-312,-360,-332,-680,-636,-2054,-1985,-2870,-1756,-5096,-5089,-29969,-29969,-29976,-29977,-29979,-29980,-29978,-29980,-29979,-29980,-29981,-29980]} 1. e4 {[%emt 0:00:02]} c5 {[%emt 0:00:26]} 2. c3 {[%emt 0:00:08]} Nf6 {[%emt 0:00:27]} 3. e5 {[%emt 0:00:10]} Nd5 {[%emt 0:00:09]} 4. d4 {[%emt 0:00:15]} cxd4 {[%emt 0:00:12]} 5. Nf3 {[%emt 0:00:12]} Nc6 {[%emt 0:00:24]} 6. cxd4 {[%emt 0:00:25]} d6 {[%emt 0:00:27]} 7. Bc4 {[%emt 0:00:12]} Nb6 {[%emt 0:00:07]} 8. Bb5 {[%emt 0:00:11]} dxe5 {[%emt 0:00:38]} 9. Nxe5 {[%emt 0:00:11]} Bd7 {[%emt 0:00:06]} 10. Nxd7 {[%emt 0:00:08]} Qxd7 {[%emt 0:00:16]} 11. Nc3 {[%emt 0:00:04]} e6 {[%emt 0:00:24]} 12. O-O {[%emt 0:00:24]} Be7 {[%emt 0:01:29]} 13. Qg4 {[%emt 0:03:36] B22: Sicilian: 2 c3.} Bf6 {[%emt 0:14:01]} 14. Rd1 {[%emt 0:02:17][%cal Od4d5]} Nd5 {[%emt 0:25:58]} 15. Ne4 {[%emt 0:06:10] The position is equal.} O-O {[%emt 0:05:24]} 16. Rd3 {[%emt 0:29:42]} Qe7 {[%emt 0:05:17]} 17. Bxc6 {[%emt 0:19:10]} bxc6 {[%emt 0:00:11]} 18. Bh6 {[%emt 0:01:14]} Kh8 {[%emt 0:02:24]} 19. Bd2 {[%emt 0:00:26] [#]} Rab8 $146 {[%emt 0:03:21]} ({Predecessor:} 19... g6 20. Nxf6 Qxf6 21. Rf3 Qe7 22. Bg5 f6 23. Bd2 Rab8 24. b3 f5 25. Qg3 Qf6 {½-½ (43) Psyk,R (2404)-Klekowski,M (2474) Sypniewo 2022}) 20. Rh3 {[%emt 0:02:16]} g6 {[%emt 0:02:27] Against Qh5} 21. Bh6 {[%emt 0:08:22]} Bg7 {[%emt 0:14:38] Strongly threatening ...f5.} 22. Ng5 $1 {[%emt 0:14:43][%cal Og5h7] Nxh7! is the strong threat.} Nf6 {[%emt 0:01:39]} 23. Qh4 {[%emt 0:05:48]} Nh5 {[%emt 0:03:55]} (23... Bxh6 $2 24. Qxh6 (24. Nxh7 Ng8 $18) 24... Rfc8 25. Nxh7 $18 (25. Ne4 Kg8 $16)) 24. Bxg7+ {[%emt 0:01:46]} Kxg7 {[%emt 0:00:06]} 25. Re3 {[%emt 0:01:19]} (25. Re1 $11 Kg8 26. g4) 25... Nf6 {[%emt 0:07:10] [#]} (25... Rfe8 $15) 26. Nxh7 $1 $14 {[%emt 0:01:23]} Rfd8 {[%emt 0:02:20]} 27. Rf3 {[%emt 0:00:51][%cal Rh7f6]} (27. Rh3 $5 {[%cal Rh4h6]} Rh8 28. Qh6+ Kg8 29. Nxf6+ Qxf6 30. Qxh8+ Qxh8 31. Rxh8+ Kxh8 32. b3 $14) 27... Ng8 {[%emt 0:03:34]} (27... Nd5 $14 28. Ng5 Rh8) 28. Ng5 $16 {[%emt 0:00:30]} Nh6 {[%emt 0:00:42]} (28... Nf6 $16) 29. Rd1 $2 {[%emt 0:02:12]} ({Worse is} 29. Rh3 Rh8 $11) (29. Re1 $1 $18 Rxb2 30. g4 (30. Rxf7+ $2 Nxf7 31. Qh7+ Kf8 $19)) 29... Rd5 $17 {[%emt 0:01:20]} 30. Qf4 {[%emt 0:00:46] aiming for Nxf7.} Rxb2 {[%emt 0:01:03]} 31. Ne4 {[%emt 0:00:24] [#] And now Nf6 would win.} Rf5 {[%emt 0:01:37] Against Nf6} ({Black should play} 31... Nf5 $1 $17 {[%cal Rf5d4]} 32. Rh3 Rxd4) 32. Qc1 $11 {[%emt 0:00:28][%csl LRb2,LRc6]} Rxa2 {[%emt 0:02:52]} 33. Rh3 {[%emt 0:00:08]} Ng8 {[%emt 0:01:10]} 34. Qxc6 {[%emt 0:00:14]} Nf6 {[%emt 0:00:35]} 35. Nxf6 {[%emt 0:00:49]} Qxf6 {[%emt 0:00:27]} (35... Kxf6 36. d5 Qd8 37. Qc3+ e5 38. Qc4 Rfxf2 39. Qh4+ g5 40. Qh6+ Kf5 41. Qh7+ Kf6 42. Rh6+ Ke7 43. d6+ Kd7 44. Qe4 $18) 36. Qa8 {[%emt 0:00:59]} (36. Qe8 $1 $11 Rh5 37. Rf3) 36... Rh5 $40 {[%emt 0:00:14][%mdl 128] Black attacks with force.} 37. Qf3 {[%emt 0:00:31]} (37. Rf3 $17 Qxd4 38. Rxf7+ Kxf7 39. Qf3+ (39. Rxd4 $2 {leads to mate.} Ra1+) 39... Rf5 40. Rxd4 Rxf3 41. gxf3) 37... Rxh3 $19 {[%emt 0:00:33]} 38. Qxf6+ {[%emt 0:00:06]} Kxf6 {[%emt 0:00:02]} 39. gxh3 {[%emt 0:00:07][%mdl 4096] Endgame KR-KR} Ra5 {[%emt 0:00:57]} 40. Rd3 {[%emt 0:00:29]} (40. Rb1 $17) 40... Ke7 {[%emt 0:00:23]} 41. Kf1 {[%emt 0:30:54]} Kd6 {[%emt 0:30:35]} 42. Ke2 {[%emt 0:00:00]} Rf5 {[%emt 0:00:00]} 43. Rc3 {[%emt 0:00:00]} Kd7 {[%emt 0:00:00]} 44. Ke3 {[%emt 0:00:00]} a5 {[%emt 0:00:00][%cal Ba7a5,Ba5a4][%mdl 32]} 45. f4 $2 {[%emt 0:00:00]} (45. Ke2 {was necessary.}) 45... a4 {[%emt 0:00:00]} 46. Ra3 {[%emt 0:00:00] [#]} Ra5 {[%emt 0:00:00]} 47. h4 {[%emt 0:00:00]} Kd6 {[%emt 0:00:00]} 48. f5 $2 {[%emt 0:00:00]} (48. Ke4) 48... exf5 {[%emt 0:00:00]} 49. Kf4 {[%emt 0:00:00]} Kd5 {[%emt 0:00:00]} 50. Kg5 {[%emt 0:00:00]} Kxd4 {[%emt 0:00:00] White must now prevent ...Kd5.} 51. h5 {[%emt 0:00:00]} f4+ {[%emt 0:00:00]} 52. Kxf4 {[%emt 0:00:06]} gxh5 {[%emt 0:00:00] Black mates.} 53. h4 {[%emt 0:00:14]} Kc4 {[%emt 0:00:00]} 54. Ke4 {[%emt 0:00:14]} Kb4 {[%emt 0:00:00]} 55. Ra1 {[%emt 0:00:08]} a3 {[%emt 0:00:00]} 56. Kd3 {[%emt 0:00:10]} a2 {[%emt 0:00:00]} 57. Kc2 {[%emt 0:00:11]} Ka3 {Never resign too early!  Weighted Error Value: White=0.61/Black=0.16 (very precise)} 0-1

[Event "FIDE WY-U16 Olympiad 2022"]
[Site "Nakhchivan"]
[Date "2022.10.04"]
[Round "3.22"]
[White "Savicevs, Arsenijs"]
[Black "Ahmad, Khagan"]
[Result "0-1"]
[ECO "D02"]
[WhiteElo "1878"]
[BlackElo "2150"]
[Annotator "TA"]
[PlyCount "68"]
[EventDate "2022.10.02"]
[EventType "team-tourn"]
[EventCountry "AZE"]
[SourceTitle "playchess.com"]
[Source "ChessBase"]
[SourceQuality "1"]
[BlackTeam "Azerbaijan"]
[BlackTeamCountry "AZE"]
[TimeControl "40/5400+30:1800+30"]

{[%evp 18,68,21,24,24,18,29,24,33,28,34,21,27,13,63,64,57,-72,-79,-81,-78,-77,-84,-75,-77,-70,-67,-95,-79,-351,-200,-200,-200,-355,-178,-260,-207,-739,-680,-1070,-1035,-1443,-989,-970,-925,-925,-915,-29984,-29985,-29986,-29986,-29986,-29987]} 1. Nf3 {[%emt 0:00:06]} d5 {[%emt 0:00:09]} 2. d4 {[%emt 0:00:08]} Nf6 {[%emt 0:00:06]} 3. g3 {[%emt 0:00:09]} e6 {[%emt 0:00:13]} 4. Bg2 {[%emt 0:00:07]} Be7 {[%emt 0:00:06]} 5. O-O {[%emt 0:00:15]} O-O {[%emt 0:00:11]} 6. c4 {[%emt 0:00:09]} dxc4 {[%emt 0:00:10]} 7. Qc2 {[%emt 0:00:09]} a6 {[%emt 0:00:16]} 8. a4 {[%emt 0:00:11]} Bd7 {[%emt 0:00:23]} 9. Qxc4 {[%emt 0:00:12]} Bc6 {[%emt 0:00:11]} 10. Bg5 {[%emt 0:00:12]} h6 {[%emt 0:04:04] ...Bd5 is the strong threat. E05: Open Catalan: 5 Nf3 Be7.} 11. Bxf6 {[%emt 0:00:10]} Bxf6 {[%emt 0:00:05]} 12. Nc3 {[%emt 0:00:34]} Bxf3 {[%emt 0:00:08] White has an edge.} 13. Bxf3 {[%emt 0:00:09]} c6 {[%emt 0:00:03]} ({But not} 13... Nc6 14. Bxc6 bxc6 15. e3 $16 (15. Qxc6 Qxd4 16. Rfd1 Qb6 $11)) 14. Rfd1 {[%emt 0:02:41]} a5 {[%emt 0:00:06]} 15. b4 {[%emt 0:08:18] [#]} Na6 $146 {[%emt 0:10:42]} (15... axb4 $11 16. Qxb4 Ra7) ({Predecessor:} 15... axb4 16. Qxb4 Ra7 17. e3 Nd7 18. Rab1 Be7 19. Qb3 Qa5 20. Qc2 Bb4 21. Na2 Be7 22. Nc3 Bb4 23. Na2 Be7 24. Nc3 Bb4 25. Na2 {½-½ (25) Jakovenko,D (2725)-Karjakin,S (2739) Odessa 2010}) 16. b5 $14 {[%emt 0:13:40]} Nb4 {[%emt 0:00:07][%cal Ba6b4,Bb4c2,Bc2d4][%mdl 32]} 17. Na2 {[%emt 0:01:07]} (17. bxc6 bxc6 18. e3) (17. bxc6 $14 {keeps the upper hand.} bxc6 18. e3) 17... cxb5 $17 {[%emt 0:00:23]} 18. Qxb5 {[%emt 0:00:21]} Nc2 {[%emt 0:00:06]} 19. Rac1 {[%emt 0:04:22]} Nxd4 {[%emt 0:00:06]} 20. Qxb7 {[%emt 0:14:39]} Rb8 {[%emt 0:00:10]} 21. Qe4 {[%emt 0:00:22]} Rb2 {[%emt 0:00:55]} 22. Nc3 {[%emt 0:00:17]} Qb6 {[%emt 0:00:03] Threatens to win with ...Rb4. Black is more active.} 23. Rd3 $2 {[%emt 0:12:10][%mdl 8192] This costs White the game.} (23. Nb5 $17 Nxb5 24. Rc6) 23... Rb4 {[%emt 0:01:22]} (23... Nb3 $142 24. Rcd1 Nc5) 24. Rcd1 $19 {[%emt 0:05:20] [#]} Qc5 $1 {[%emt 0:10:32] Strongly threatening ...Nb3.} 25. Nb1 $2 {[%emt 0:10:59]} (25. Bh1) 25... Rxa4 {[%emt 0:02:19]} (25... Rc8 $142 {White must now prevent ...Nb3.} 26. Qe3 Rcb8) 26. Bg2 {[%emt 0:02:13]} (26. Nd2 $142) 26... Rb8 {[%emt 0:03:53] And now ...Ra1 would win.} 27. Kf1 $2 {[%emt 0:04:54]} (27. Nd2) 27... Ra1 {[%emt 0:01:28]} 28. Nc3 {[%emt 0:05:39] [#]} Qxc3 {[%emt 0:00:21][%mdl 512]} 29. Bh3 {[%emt 0:04:57]} (29. Kg1 Rxd1+) 29... Rxd1+ {[%emt 0:00:18]} 30. Rxd1 {[%emt 0:00:03]} a4 {[%emt 0:00:48][%cal Ba5a4,Ba4a3][%mdl 32]} 31. e3 {[%emt 0:00:22]} Qc2 {[%emt 0:00:42]} 32. Rxd4 {[%emt 0:00:11]} Qb1+ {[%emt 0:00:07] Black mates.} 33. Kg2 {[%emt 0:01:08]} Bxd4 {[%emt 0:00:06]} 34. Qxd4 {[%emt 0:00:59]} a3 {[%emt 0:00:08] Weighted Error Value: White=1.13/Black=0.48} 0-1

[Event "FIDE WY-U16 Olympiad 2022"]
[Site "Nakhchivan"]
[Date "2022.10.04"]
[Round "3.22"]
[White "Karam, Youssef Mark"]
[Black "Chen, Rachel Ruoxuan"]
[Result "0-1"]
[ECO "A06"]
[WhiteElo "1522"]
[BlackElo "1805"]
[Annotator "NA RC COMBH"]
[PlyCount "60"]
[EventDate "2022.10.02"]
[EventType "team-tourn"]
[EventCountry "AZE"]
[SourceTitle "playchess.com"]
[Source "ChessBase"]
[SourceQuality "1"]
[WhiteTeam "Lebanon"]
[BlackTeam "Canada"]
[WhiteTeamCountry "LBN"]
[BlackTeamCountry "CAN"]
[TimeControl "40/5400+30:1800+30"]

1. Nf3 {[%emt 0:00:10]} d5 {[%emt 0:00:16]} 2. b3 {[%emt 0:00:16]} c5 {[%emt 0:01:31]} 3. e3 {[%emt 0:00:15]} Nf6 {[%emt 0:04:03]} 4. Bb2 {[%emt 0:00:15]} e6 {[%emt 0:03:03]} 5. Be2 {[%emt 0:04:32]} Nc6 {[%emt 0:06:29]} 6. Bb5 {[%emt 0:00:53]} Bd7 {[%emt 0:03:54]} 7. O-O {[%emt 0:00:23]} Be7 {[%emt 0:02:27]} 8. d3 {[%emt 0:00:30]} O-O {[%emt 0:01:34]} 9. Bxc6 {[%emt 0:02:57]} Bxc6 $11 {[%emt 0:04:59]} 10. Ne5 {[%emt 0:01:19]} Rc8 {[%emt 0:07:53]} (10... Be8 $142) 11. a4 {[%emt 0:01:23]} b6 {[%emt 0:07:33]} 12. Nd2 {[%emt 0:05:48]} Bb7 {[%emt 0:04:04]} 13. f4 {[%emt 0:00:23]} d4 {[%emt 0:04:22]} 14. e4 {[%emt 0:00:21]} Ne8 {[%emt 0:07:07]} 15. Qh5 {[%emt 0:12:42]} f6 {[%emt 0:05:29]} 16. Ng4 {[%emt 0:00:50]} f5 {[%emt 0:01:14]} 17. Ne5 {[%emt 0:02:39]} Nf6 {[%emt 0:01:45]} 18. Qh3 {[%emt 0:00:46]} Qe8 {[%emt 0:05:46]} 19. exf5 {[%emt 0:09:31]} Nd5 {[%emt 0:01:28]} 20. fxe6 {[%emt 0:03:46]} Nxf4 {[%emt 0:00:42]} 21. Qg4 {[%emt 0:00:26]} h5 {[%emt 0:02:51]} 22. Qd1 {[%emt 0:02:10]} Nxg2 {[%emt 0:01:35]} 23. Nf7 {[%emt 0:05:59]} g6 {[%emt 0:03:31]} 24. Nc4 {[%emt 0:08:15]} Qc6 {[%emt 0:02:25]} 25. Nce5 {[%emt 0:09:13]} Qxe6 {[%emt 0:01:30]} 26. Qd2 {[%emt 0:07:43]} Ne3 {[%emt 0:02:14]} 27. Rae1 {[%emt 0:10:51]} Rxf7 {[%emt 0:05:54]} 28. Rxf7 {[%emt 0:04:30]} Qxe5 {[%emt 0:00:21]} 29. Qxe3 {[%emt 0:02:00]} Qxe3+ {[%emt 0:00:42]} 30. Rxe3 {[%emt 0:00:06]} Kxf7 {[%emt 0:00:04]} 0-1